[Event "Titled Tuesday Blitz February 22 Early 2022"]
[White "Freitag, Manfred"]
[Black "Nesterov, Arseniy"]
[WhiteFideId "1602004"]
[BlackFideId "24198455"]
[WhiteElo "2275"]
[BlackElo "2489"]
[Result "0-1"]
[Round "04"]
[TimeControl "180+1"]
[Date "2022.02.22"]
[WhiteClock "0:01:03"]
[BlackClock "0:00:03"]

1. e4 {[%clk 0:03:00]}  e5 {[%clk 0:03:00]} 2. Nf3 {[%clk 0:03:00]}  Nc6 {[%clk 0:03:00]} 3. Bb5 {[%clk 0:03:00]}  a6 {[%clk 0:03:01]} 4. Ba4 {[%clk 0:03:01]}  b5 {[%clk 0:03:01]} 5. Bb3 {[%clk 0:03:00]}  Na5 {[%clk 0:03:02]} 6. O-O {[%clk 0:02:59]}  d6 {[%clk 0:03:03]} 7. d4 {[%clk 0:02:58]}  exd4 {[%clk 0:03:04]} 8. Nxd4 {[%clk 0:02:59]}  Bb7 {[%clk 0:03:04]} 9. Re1 {[%clk 0:02:58]}  c5 {[%clk 0:03:02]} 10. Bd5 {[%clk 0:02:57]}  cxd4 {[%clk 0:03:02]} 11. b4 {[%clk 0:02:55]}  Nc6 {[%clk 0:03:02]} 12. e5 {[%clk 0:02:44]}  dxe5 {[%clk 0:02:59]} 13. Qf3 {[%clk 0:02:44]}  Qd7 {[%clk 0:02:50]} 14. c4 {[%clk 0:02:38]}  Nf6 {[%clk 0:02:47]} 15. Bxc6 {[%clk 0:02:35]}  Bxc6 {[%clk 0:02:48]} 16. Rxe5+ {[%clk 0:02:35]}  Be7 {[%clk 0:02:49]} 17. Qg3 {[%clk 0:02:28]}  O-O {[%clk 0:02:43]} 18. Bh6 {[%clk 0:02:22]}  Qg4 {[%clk 0:02:37]} 19. Nd2 {[%clk 0:02:15]}  Qxg3 {[%clk 0:02:36]} 20. hxg3 {[%clk 0:02:16]}  gxh6 {[%clk 0:02:36]} 21. Rxe7 {[%clk 0:02:16]}  Rfe8 {[%clk 0:02:34]} 22. Rc7 {[%clk 0:02:11]}  Rac8 {[%clk 0:02:34]} 23. Ra7 {[%clk 0:02:08]}  Re2 {[%clk 0:02:32]} 24. Nb3 {[%clk 0:02:07]}  Rd8 {[%clk 0:02:26]} 25. Rxa6 {[%clk 0:02:04]}  bxc4 {[%clk 0:02:27]} 26. Nxd4 {[%clk 0:01:58]}  Rxd4 {[%clk 0:02:24]} 27. Rxc6 {[%clk 0:01:58]}  Ne4 {[%clk 0:02:20]} 28. b5 {[%clk 0:01:54]}  Rxf2 {[%clk 0:02:16]} 29. Rf1 {[%clk 0:01:50]}  Rxf1+ {[%clk 0:02:14]} 30. Kxf1 {[%clk 0:01:51]}  c3 {[%clk 0:01:57]} 31. a3 {[%clk 0:01:51]}  Rd2 {[%clk 0:01:43]} 32. b6 {[%clk 0:01:47]}  Rb2 {[%clk 0:01:43]} 33. a4 {[%clk 0:01:47]}  c2 {[%clk 0:01:14]} 34. a5 {[%clk 0:01:47]}  Kg7 {[%clk 0:00:52]} 35. g4 {[%clk 0:01:38]}  f6 {[%clk 0:00:14]} 36. Kg1 {[%clk 0:01:33]}  Kg6 {[%clk 0:00:10]} 37. Kh2 {[%clk 0:01:33]}  Kg5 {[%clk 0:00:08]} 38. Rc7 {[%clk 0:01:22]}  Kxg4 {[%clk 0:00:04]} 39. Rxc2 {[%clk 0:01:11]}  Rxc2 {[%clk 0:00:05]} 40. a6 {[%clk 0:01:11]}  Ng5 {[%clk 0:00:03]} 41. Kg1 {[%clk 0:01:09]}  Rc1+ {[%clk 0:00:02]} 42. Kf2 {[%clk 0:01:09]}  Ne4+ {[%clk 0:00:03]} 43. Ke3 {[%clk 0:01:10]}  Nc5 {[%clk 0:00:03]} 44. a7 {[%clk 0:01:07]}  Ra1 {[%clk 0:00:03]} 45. Kd4 {[%clk 0:01:07]}  Nd7 {[%clk 0:00:03]} 46. b7 {[%clk 0:01:02]}  Rxa7 {[%clk 0:00:03]} 47. b8=Q {[%clk 0:01:02]}  Nxb8 {[%clk 0:00:03]} 48. Ke4 {[%clk 0:01:03]}  Re7+ {[%clk 0:00:03]} 0-1


[Site "https://www.chess.com"]

[Event "Titled Tuesday Blitz February 22 Early 2022"]
[White "Garv Gaur"]
[Black "Sailer, Mike"]
[WhiteFideId "45030839"]
[BlackFideId "2012901"]
[WhiteElo "1950"]
[BlackElo "2109"]
[Result "1/2-1/2"]
[Round "04"]
[TimeControl "180+1"]
[Date "2022.02.22"]
[WhiteClock "0:00:21"]
[BlackClock "0:00:02"]

1. d4 {[%clk 0:03:00]}  d5 {[%clk 0:02:59]} 2. Nf3 {[%clk 0:03:00]}  Bf5 {[%clk 0:02:59]} 3. c4 {[%clk 0:03:00]}  e6 {[%clk 0:02:56]} 4. g3 {[%clk 0:03:00]}  Nf6 {[%clk 0:02:49]} 5. Bg2 {[%clk 0:03:00]}  Be7 {[%clk 0:02:43]} 6. Nc3 {[%clk 0:02:55]}  O-O {[%clk 0:02:43]} 7. O-O {[%clk 0:02:46]}  c6 {[%clk 0:02:28]} 8. Nd2 {[%clk 0:02:37]}  Nbd7 {[%clk 0:02:26]} 9. e4 {[%clk 0:02:36]}  dxe4 {[%clk 0:02:25]} 10. Ndxe4 {[%clk 0:02:37]}  Nxe4 {[%clk 0:02:25]} 11. Nxe4 {[%clk 0:02:38]}  Nf6 {[%clk 0:02:14]} 12. Nc3 {[%clk 0:02:37]}  h6 {[%clk 0:02:08]} 13. Be3 {[%clk 0:02:32]}  Qc7 {[%clk 0:02:07]} 14. Qb3 {[%clk 0:02:30]}  Rfd8 {[%clk 0:01:58]} 15. Rfd1 {[%clk 0:02:30]}  Rac8 {[%clk 0:01:50]} 16. Rac1 {[%clk 0:02:29]}  e5 {[%clk 0:01:24]} 17. dxe5 {[%clk 0:02:25]}  Qxe5 {[%clk 0:01:22]} 18. Bxa7 {[%clk 0:02:22]}  Bc5 {[%clk 0:01:13]} 19. Bxc5 {[%clk 0:02:18]}  Qxc5 {[%clk 0:01:13]} 20. Qxb7 {[%clk 0:02:13]}  Qxc4 {[%clk 0:01:13]} 21. Rxd8+ {[%clk 0:02:11]}  Rxd8 {[%clk 0:01:13]} 22. Qxc6 {[%clk 0:02:11]}  Qb4 {[%clk 0:01:05]} 23. Qb5 {[%clk 0:02:07]}  Qg4 {[%clk 0:00:58]} 24. Qe2 {[%clk 0:02:03]}  Qg6 {[%clk 0:00:57]} 25. a4 {[%clk 0:01:57]}  Bd3 {[%clk 0:00:57]} 26. Qf3 {[%clk 0:01:53]}  Rb8 {[%clk 0:00:54]} 27. a5 {[%clk 0:01:21]}  Rxb2 {[%clk 0:00:52]} 28. a6 {[%clk 0:01:21]}  Bxa6 {[%clk 0:00:51]} 29. Qa8+ {[%clk 0:01:20]}  Kh7 {[%clk 0:00:50]} 30. Qxa6 {[%clk 0:01:20]}  Rxf2 {[%clk 0:00:32]} 31. Qc4 {[%clk 0:00:58]}  Rb2 {[%clk 0:00:21]} 32. Ne4 {[%clk 0:00:55]}  Rxg2+ {[%clk 0:00:17]} 33. Kxg2 {[%clk 0:00:54]}  Qxe4+ {[%clk 0:00:15]} 34. Qxe4+ {[%clk 0:00:54]}  Nxe4 {[%clk 0:00:15]} 35. Kf3 {[%clk 0:00:54]}  Ng5+ {[%clk 0:00:08]} 36. Kg4 {[%clk 0:00:54]}  Ne6 {[%clk 0:00:09]} 37. h4 {[%clk 0:00:52]}  Kg6 {[%clk 0:00:08]} 38. Rf1 {[%clk 0:00:48]}  h5+ {[%clk 0:00:08]} 39. Kf3 {[%clk 0:00:48]}  Nf8 {[%clk 0:00:07]} 40. Rc1 {[%clk 0:00:47]}  Ne6 {[%clk 0:00:07]} 41. Ra1 {[%clk 0:00:46]}  Kf6 {[%clk 0:00:07]} 42. Ra5 {[%clk 0:00:44]}  g6 {[%clk 0:00:06]} 43. Ke4 {[%clk 0:00:43]}  Kg7 {[%clk 0:00:04]} 44. Ke5 {[%clk 0:00:39]}  Nf8 {[%clk 0:00:03]} 45. Ra7 {[%clk 0:00:38]}  Nh7 {[%clk 0:00:03]} 46. Rb7 {[%clk 0:00:35]}  Nf6 {[%clk 0:00:02]} 47. Ra7 {[%clk 0:00:32]}  Ng8 {[%clk 0:00:03]} 48. Kf4 {[%clk 0:00:27]}  Nh6 {[%clk 0:00:03]} 49. Kg5 {[%clk 0:00:23]}  Ng4 {[%clk 0:00:02]} 50. Kf4 {[%clk 0:00:22]}  Nh6 {[%clk 0:00:03]} 51. Ke5 {[%clk 0:00:22]}  Nf5 {[%clk 0:00:01]} 52. Ra3 {[%clk 0:00:20]}  Nh6 {[%clk 0:00:01]} 53. Kd6 {[%clk 0:00:19]}  Nf5+ {[%clk 0:00:01]} 54. Ke5 {[%clk 0:00:19]}  Nh6 {[%clk 0:00:01]} 55. Rf3 {[%clk 0:00:19]}  Nf5 {[%clk 0:00:02]} 56. Rxf5 {[%clk 0:00:19]}  gxf5 {[%clk 0:00:03]} 57. Kxf5 {[%clk 0:00:20]}  f6 {[%clk 0:00:02]} 58. Ke4 {[%clk 0:00:20]}  Kg6 {[%clk 0:00:01]} 59. Kf4 {[%clk 0:00:21]}  Kg7 {[%clk 0:00:01]} 60. Kf5 {[%clk 0:00:21]}  Kf7 {[%clk 0:00:01]} 61. Ke4 {[%clk 0:00:20]}  Kg7 {[%clk 0:00:01]} 62. Kf4 {[%clk 0:00:20]}  Kg6 {[%clk 0:00:01]} 63. g4 {[%clk 0:00:21]}  hxg4 {[%clk 0:00:01]} 64. Kxg4 {[%clk 0:00:22]}  Kh6 {[%clk 0:00:02]} 65. Kf4 {[%clk 0:00:20]}  Kh5 {[%clk 0:00:01]} 66. Kg3 {[%clk 0:00:20]}  f5 {[%clk 0:00:02]} 67. Kh3 {[%clk 0:00:20]}  f4 {[%clk 0:00:01]} 68. Kg2 {[%clk 0:00:20]}  f3+ {[%clk 0:00:02]} 69. Kxf3 {[%clk 0:00:21]}  Kxh4 {[%clk 0:00:02]} 1/2-1/2


[Site "https://www.chess.com"]

[Event "Titled Tuesday Blitz February 22 Early 2022"]
[White "Gormally, Daniel W"]
[Black "Kollars, Dmitrij"]
[WhiteFideId "406465"]
[BlackFideId "12909572"]
[WhiteElo "2543"]
[BlackElo "2584"]
[Result "0-1"]
[Round "04"]
[TimeControl "180+1"]
[Date "2022.02.22"]
[WhiteClock "0:00:15"]
[BlackClock "0:00:13"]

1. c4 {[%clk 0:03:00]}  e5 {[%clk 0:02:57]} 2. Nc3 {[%clk 0:03:00]}  Bb4 {[%clk 0:02:57]} 3. Nd5 {[%clk 0:03:00]}  a5 {[%clk 0:02:56]} 4. Nf3 {[%clk 0:02:56]}  d6 {[%clk 0:02:52]} 5. a3 {[%clk 0:02:50]}  Bc5 {[%clk 0:02:52]} 6. e3 {[%clk 0:02:50]}  Nf6 {[%clk 0:02:48]} 7. d4 {[%clk 0:02:46]}  Nxd5 {[%clk 0:02:48]} 8. dxc5 {[%clk 0:02:43]}  Nf6 {[%clk 0:02:48]} 9. cxd6 {[%clk 0:02:43]}  cxd6 {[%clk 0:02:49]} 10. Be2 {[%clk 0:02:38]}  O-O {[%clk 0:02:49]} 11. b3 {[%clk 0:02:32]}  Be6 {[%clk 0:02:42]} 12. O-O {[%clk 0:02:31]}  Na6 {[%clk 0:02:33]} 13. Bb2 {[%clk 0:02:27]}  Qe7 {[%clk 0:02:33]} 14. Rc1 {[%clk 0:02:10]}  Rfc8 {[%clk 0:02:28]} 15. Ng5 {[%clk 0:02:00]}  Bf5 {[%clk 0:02:25]} 16. Bc3 {[%clk 0:01:46]}  h6 {[%clk 0:02:22]} 17. Nf3 {[%clk 0:01:46]}  Nc5 {[%clk 0:02:04]} 18. Nd2 {[%clk 0:01:45]}  d5 {[%clk 0:01:50]} 19. cxd5 {[%clk 0:01:35]}  Nxd5 {[%clk 0:01:51]} 20. Ba1 {[%clk 0:01:35]}  Nd3 {[%clk 0:01:38]} 21. Rxc8+ {[%clk 0:01:28]}  Rxc8 {[%clk 0:01:39]} 22. Nc4 {[%clk 0:01:11]}  e4 {[%clk 0:01:38]} 23. Qd2 {[%clk 0:01:04]}  a4 {[%clk 0:01:11]} 24. Qa5 {[%clk 0:01:03]}  Rc5 {[%clk 0:00:53]} 25. Qxa4 {[%clk 0:00:58]}  b5 {[%clk 0:00:52]} 26. Qa8+ {[%clk 0:00:57]}  Kh7 {[%clk 0:00:50]} 27. Na5 {[%clk 0:00:46]}  Qg5 {[%clk 0:00:39]} 28. g3 {[%clk 0:00:37]}  Bh3 {[%clk 0:00:35]} 29. Qe8 {[%clk 0:00:21]}  Bxf1 {[%clk 0:00:23]} 30. Bxf1 {[%clk 0:00:17]}  Qf5 {[%clk 0:00:19]} 31. f4 {[%clk 0:00:18]}  Nxe3 {[%clk 0:00:15]} 32. Bd4 {[%clk 0:00:17]}  Nxf1 {[%clk 0:00:13]} 33. Kxf1 {[%clk 0:00:15]}  Rc1+ {[%clk 0:00:13]} 34. Ke2 {[%clk 0:00:15]}  Qg4+ {[%clk 0:00:13]} 0-1


[Site "https://www.chess.com"]

[Event "Titled Tuesday Blitz February 22 Early 2022"]
[White "Guliev, Logman"]
[Black "Martinez, Shawn"]
[WhiteFideId "13400061"]
[BlackFideId "2039770"]
[WhiteElo "2128"]
[BlackElo "2174"]
[Result "1-0"]
[Round "04"]
[TimeControl "180+1"]
[Date "2022.02.22"]
[WhiteClock "0:00:03"]
[BlackClock "0:00:11"]

1. e4 {[%clk 0:03:00]}  c5 {[%clk 0:02:59]} 2. Nf3 {[%clk 0:02:59]}  e6 {[%clk 0:02:59]} 3. c3 {[%clk 0:02:58]}  Nf6 {[%clk 0:02:58]} 4. e5 {[%clk 0:02:57]}  Nd5 {[%clk 0:02:58]} 5. d4 {[%clk 0:02:58]}  cxd4 {[%clk 0:02:56]} 6. cxd4 {[%clk 0:02:57]}  Bb4+ {[%clk 0:02:52]} 7. Bd2 {[%clk 0:02:55]}  Bxd2+ {[%clk 0:02:49]} 8. Qxd2 {[%clk 0:02:55]}  d6 {[%clk 0:02:49]} 9. exd6 {[%clk 0:02:54]}  Qxd6 {[%clk 0:02:49]} 10. Nc3 {[%clk 0:02:55]}  Nxc3 {[%clk 0:02:44]} 11. bxc3 {[%clk 0:02:54]}  O-O {[%clk 0:02:44]} 12. Bd3 {[%clk 0:02:53]}  b6 {[%clk 0:02:38]} 13. Be4 {[%clk 0:02:51]}  Nc6 {[%clk 0:02:38]} 14. O-O {[%clk 0:02:20]}  h6 {[%clk 0:02:20]} 15. d5 {[%clk 0:02:11]}  exd5 {[%clk 0:02:09]} 16. Bxd5 {[%clk 0:02:11]}  Be6 {[%clk 0:02:05]} 17. c4 {[%clk 0:02:09]}  Rfd8 {[%clk 0:02:00]} 18. Rfd1 {[%clk 0:02:07]}  Rac8 {[%clk 0:01:55]} 19. Qe3 {[%clk 0:02:01]}  Bxd5 {[%clk 0:01:48]} 20. Rxd5 {[%clk 0:01:43]}  Qf6 {[%clk 0:01:48]} 21. Rad1 {[%clk 0:01:42]}  Re8 {[%clk 0:01:48]} 22. Qa3 {[%clk 0:01:39]}  Na5 {[%clk 0:01:48]} 23. c5 {[%clk 0:01:33]}  Qg6 {[%clk 0:01:10]} 24. Ne5 {[%clk 0:01:19]}  Qe4 {[%clk 0:01:02]} 25. Nf3 {[%clk 0:01:00]}  Qc2 {[%clk 0:00:59]} 26. cxb6 {[%clk 0:00:55]}  axb6 {[%clk 0:01:00]} 27. R5d2 {[%clk 0:00:51]}  Qc4 {[%clk 0:00:54]} 28. h3 {[%clk 0:00:50]}  Nb7 {[%clk 0:00:50]} 29. Rd7 {[%clk 0:00:45]}  Nc5 {[%clk 0:00:50]} 30. R7d6 {[%clk 0:00:40]}  b5 {[%clk 0:00:47]} 31. Qa7 {[%clk 0:00:36]}  Ne4 {[%clk 0:00:44]} 32. Rd7 {[%clk 0:00:29]}  Ra8 {[%clk 0:00:43]} 33. Qb6 {[%clk 0:00:15]}  Rxa2 {[%clk 0:00:39]} 34. Rd8 {[%clk 0:00:14]}  Rxd8 {[%clk 0:00:37]} 35. Rxd8+ {[%clk 0:00:11]}  Kh7 {[%clk 0:00:37]} 36. Qb8 {[%clk 0:00:08]}  Qc1+ {[%clk 0:00:17]} 37. Kh2 {[%clk 0:00:08]}  Nxf2 {[%clk 0:00:17]} 38. Rh8+ {[%clk 0:00:07]}  Kg6 {[%clk 0:00:18]} 39. Ne5+ {[%clk 0:00:04]}  Kf5 {[%clk 0:00:18]} 40. Qc8+ {[%clk 0:00:03]}  Kxe5 {[%clk 0:00:14]} 41. Qxc1 {[%clk 0:00:02]}  Nd3 {[%clk 0:00:10]} 42. Re8+ {[%clk 0:00:02]}  Kd4 {[%clk 0:00:10]} 43. Qe3+ {[%clk 0:00:02]}  Kc3 {[%clk 0:00:10]} 44. Rc8+ {[%clk 0:00:03]}  Kb4 {[%clk 0:00:10]} 45. Qxd3 {[%clk 0:00:03]}  Ra3 {[%clk 0:00:10]} 46. Qd4+ {[%clk 0:00:03]}  Kb3 {[%clk 0:00:10]} 47. Rc3+ {[%clk 0:00:03]}  Ka2 {[%clk 0:00:10]} 48. Qd2+ {[%clk 0:00:02]}  Ka1 {[%clk 0:00:11]} 49. Rc1# {[%clk 0:00:03]} 1-0


[Site "https://www.chess.com"]

[Event "Titled Tuesday Blitz February 22 Early 2022"]
[White "Guseinov, Gadir"]
[Black "Kobalia, Mikhail"]
[WhiteFideId "13401378"]
[BlackFideId "4119150"]
[WhiteElo "2581"]
[BlackElo "2667"]
[Result "0-1"]
[Round "04"]
[TimeControl "180+1"]
[Date "2022.02.22"]
[WhiteClock "0:01:52"]
[BlackClock "0:02:00"]

1. e4 {[%clk 0:03:00]}  c6 {[%clk 0:02:58]} 2. d4 {[%clk 0:02:59]}  d5 {[%clk 0:02:59]} 3. Nd2 {[%clk 0:03:00]}  dxe4 {[%clk 0:02:59]} 4. Nxe4 {[%clk 0:03:01]}  Bf5 {[%clk 0:02:59]} 5. Ng3 {[%clk 0:03:01]}  Bg6 {[%clk 0:02:59]} 6. h4 {[%clk 0:03:01]}  h6 {[%clk 0:02:59]} 7. Nf3 {[%clk 0:03:02]}  Nd7 {[%clk 0:02:57]} 8. h5 {[%clk 0:03:02]}  Bh7 {[%clk 0:02:57]} 9. Bd3 {[%clk 0:03:03]}  Bxd3 {[%clk 0:02:57]} 10. Qxd3 {[%clk 0:03:04]}  e6 {[%clk 0:02:57]} 11. Bd2 {[%clk 0:03:04]}  Ngf6 {[%clk 0:02:57]} 12. O-O-O {[%clk 0:03:04]}  Be7 {[%clk 0:02:57]} 13. Ne4 {[%clk 0:03:04]}  Qb6 {[%clk 0:02:54]} 14. Nxf6+ {[%clk 0:03:04]}  Nxf6 {[%clk 0:02:53]} 15. Ne5 {[%clk 0:03:03]}  O-O {[%clk 0:02:30]} 16. g4 {[%clk 0:03:03]}  Rad8 {[%clk 0:02:29]} 17. c3 {[%clk 0:03:03]}  Nd7 {[%clk 0:02:26]} 18. Nxd7 {[%clk 0:02:22]}  Rxd7 {[%clk 0:02:27]} 19. f4 {[%clk 0:02:22]}  c5 {[%clk 0:02:27]} 20. g5 {[%clk 0:02:19]}  hxg5 {[%clk 0:02:27]} 21. fxg5 {[%clk 0:02:15]}  cxd4 {[%clk 0:02:26]} 22. g6 {[%clk 0:02:10]}  dxc3 {[%clk 0:02:25]} 23. gxf7+ {[%clk 0:02:04]}  Rxf7 {[%clk 0:02:09]} 24. Qxc3 {[%clk 0:01:51]}  Rc7 {[%clk 0:02:07]} 25. h6 {[%clk 0:01:52]}  Bf6 {[%clk 0:02:00]} 0-1


[Site "https://www.chess.com"]

[Event "Titled Tuesday Blitz February 22 Early 2022"]
[White "Hakemi, Arman"]
[Black "Popadic, Dragan"]
[WhiteFideId "22520805"]
[BlackFideId "913650"]
[WhiteElo "2208"]
[BlackElo "2199"]
[Result "1-0"]
[Round "04"]
[TimeControl "180+1"]
[Date "2022.02.22"]
[WhiteClock "0:00:08"]
[BlackClock "0:00:01"]

1. e4 {[%clk 0:03:00]}  c5 {[%clk 0:02:58]} 2. Nf3 {[%clk 0:02:48]}  Nc6 {[%clk 0:02:58]} 3. Bb5 {[%clk 0:02:44]}  e5 {[%clk 0:02:58]} 4. O-O {[%clk 0:02:41]}  d6 {[%clk 0:02:57]} 5. c3 {[%clk 0:02:40]}  Bd7 {[%clk 0:02:57]} 6. d4 {[%clk 0:02:40]}  Qc7 {[%clk 0:02:57]} 7. Bg5 {[%clk 0:02:36]}  Be7 {[%clk 0:02:50]} 8. Be3 {[%clk 0:02:34]}  Nf6 {[%clk 0:02:48]} 9. Nbd2 {[%clk 0:02:29]}  a6 {[%clk 0:02:48]} 10. Bd3 {[%clk 0:02:25]}  b5 {[%clk 0:02:44]} 11. a4 {[%clk 0:02:19]}  Rb8 {[%clk 0:02:41]} 12. axb5 {[%clk 0:02:15]}  axb5 {[%clk 0:02:41]} 13. h3 {[%clk 0:02:07]}  O-O {[%clk 0:02:40]} 14. Qe2 {[%clk 0:02:05]}  b4 {[%clk 0:02:19]} 15. Nc4 {[%clk 0:02:01]}  bxc3 {[%clk 0:02:11]} 16. bxc3 {[%clk 0:02:01]}  Ra8 {[%clk 0:02:06]} 17. d5 {[%clk 0:01:48]}  Rxa1 {[%clk 0:02:05]} 18. Rxa1 {[%clk 0:01:48]}  Nb8 {[%clk 0:02:01]} 19. Qb2 {[%clk 0:01:39]}  Rc8 {[%clk 0:01:57]} 20. Nfd2 {[%clk 0:01:19]}  Nh5 {[%clk 0:01:53]} 21. Nb6 {[%clk 0:01:07]}  Rd8 {[%clk 0:01:52]} 22. Ra8 {[%clk 0:00:59]}  Be8 {[%clk 0:01:39]} 23. Ndc4 {[%clk 0:00:49]}  Nf4 {[%clk 0:01:31]} 24. Bf1 {[%clk 0:00:37]}  Nd7 {[%clk 0:01:30]} 25. Rxd8 {[%clk 0:00:31]}  Bxd8 {[%clk 0:01:22]} 26. Nc8 {[%clk 0:00:18]}  Nf6 {[%clk 0:00:59]} 27. N8xd6 {[%clk 0:00:17]}  Bd7 {[%clk 0:00:55]} 28. Nxe5 {[%clk 0:00:16]}  Qxd6 {[%clk 0:00:49]} 29. Bxf4 {[%clk 0:00:16]}  Nh5 {[%clk 0:00:49]} 30. Bh2 {[%clk 0:00:16]}  Bc7 {[%clk 0:00:43]} 31. Nf3 {[%clk 0:00:15]}  Qb6 {[%clk 0:00:37]} 32. Qxb6 {[%clk 0:00:15]}  Bxb6 {[%clk 0:00:37]} 33. e5 {[%clk 0:00:16]}  g6 {[%clk 0:00:32]} 34. Nd2 {[%clk 0:00:15]}  Ng7 {[%clk 0:00:30]} 35. Ne4 {[%clk 0:00:13]}  Ba4 {[%clk 0:00:27]} 36. Nf6+ {[%clk 0:00:11]}  Kf8 {[%clk 0:00:27]} 37. Nxh7+ {[%clk 0:00:11]}  Ke7 {[%clk 0:00:27]} 38. Bf4 {[%clk 0:00:11]}  Nf5 {[%clk 0:00:26]} 39. Bg5+ {[%clk 0:00:11]}  Kd7 {[%clk 0:00:26]} 40. Nf6+ {[%clk 0:00:12]}  Kc7 {[%clk 0:00:24]} 41. g4 {[%clk 0:00:11]}  Ng7 {[%clk 0:00:19]} 42. d6+ {[%clk 0:00:11]}  Kc6 {[%clk 0:00:14]} 43. Bg2+ {[%clk 0:00:11]}  Kb5 {[%clk 0:00:12]} 44. Nd5 {[%clk 0:00:10]}  Ba5 {[%clk 0:00:10]} 45. Nc7+ {[%clk 0:00:07]}  Kc4 {[%clk 0:00:08]} 46. Bd5+ {[%clk 0:00:07]}  Kxc3 {[%clk 0:00:07]} 47. Bxf7 {[%clk 0:00:08]}  Kd4 {[%clk 0:00:04]} 48. e6 {[%clk 0:00:06]}  Nxe6 {[%clk 0:00:02]} 49. Nxe6+ {[%clk 0:00:07]}  Ke5 {[%clk 0:00:03]} 50. Nxc5 {[%clk 0:00:07]}  Bb5 {[%clk 0:00:01]} 51. d7 {[%clk 0:00:07]}  Kd6 {[%clk 0:00:01]} 52. d8=Q+ {[%clk 0:00:08]} 1-0


[Site "https://www.chess.com"]

[Event "Titled Tuesday Blitz February 22 Early 2022"]
[White "Heinemann, Josefine"]
[Black "Hess, Robert"]
[WhiteFideId "12900460"]
[BlackFideId "2022036"]
[WhiteElo "2300"]
[BlackElo "2557"]
[Result "0-1"]
[Round "04"]
[TimeControl "180+1"]
[Date "2022.02.22"]
[WhiteClock "0:00:01"]
[BlackClock "0:00:09"]

1. Nf3 {[%clk 0:03:00]}  g6 {[%clk 0:03:00]} 2. d4 {[%clk 0:02:59]}  Bg7 {[%clk 0:03:01]} 3. g3 {[%clk 0:02:59]}  d6 {[%clk 0:02:59]} 4. Bg2 {[%clk 0:02:59]}  e6 {[%clk 0:02:59]} 5. O-O {[%clk 0:02:58]}  Ne7 {[%clk 0:02:59]} 6. e4 {[%clk 0:02:58]}  Nd7 {[%clk 0:03:00]} 7. Nc3 {[%clk 0:02:51]}  h6 {[%clk 0:03:00]} 8. Be3 {[%clk 0:02:49]}  a6 {[%clk 0:03:01]} 9. Qd2 {[%clk 0:02:48]}  g5 {[%clk 0:02:49]} 10. a4 {[%clk 0:02:39]}  b6 {[%clk 0:02:49]} 11. h4 {[%clk 0:02:34]}  gxh4 {[%clk 0:02:28]} 12. Nxh4 {[%clk 0:02:33]}  Bb7 {[%clk 0:02:29]} 13. f4 {[%clk 0:02:10]}  Bf6 {[%clk 0:01:57]} 14. Nf3 {[%clk 0:01:52]}  Rg8 {[%clk 0:01:54]} 15. e5 {[%clk 0:01:46]}  Bh8 {[%clk 0:01:42]} 16. Bf2 {[%clk 0:01:41]}  Nf5 {[%clk 0:01:27]} 17. Ne2 {[%clk 0:01:32]}  Qe7 {[%clk 0:01:19]} 18. Qd3 {[%clk 0:01:15]}  dxe5 {[%clk 0:01:13]} 19. dxe5 {[%clk 0:01:11]}  Nc5 {[%clk 0:01:04]} 20. Qc4 {[%clk 0:00:46]}  Ne4 {[%clk 0:01:00]} 21. Nfd4 {[%clk 0:00:22]}  Nd2 {[%clk 0:00:24]} 22. Nxf5 {[%clk 0:00:21]}  exf5 {[%clk 0:00:13]} 23. Bc6+ {[%clk 0:00:18]}  Kf8 {[%clk 0:00:13]} 24. Qd5 {[%clk 0:00:14]}  Rd8 {[%clk 0:00:11]} 25. Qg2 {[%clk 0:00:12]}  Bxc6 {[%clk 0:00:10]} 26. Qxc6 {[%clk 0:00:13]}  Nxf1 {[%clk 0:00:10]} 27. Rxf1 {[%clk 0:00:13]}  Rg6 {[%clk 0:00:10]} 28. Qc3 {[%clk 0:00:12]}  f6 {[%clk 0:00:09]} 29. a5 {[%clk 0:00:11]}  fxe5 {[%clk 0:00:08]} 30. axb6 {[%clk 0:00:11]}  cxb6 {[%clk 0:00:09]} 31. fxe5 {[%clk 0:00:10]}  Bxe5 {[%clk 0:00:08]} 32. Qf3 {[%clk 0:00:10]}  Qg5 {[%clk 0:00:04]} 33. Bxb6 {[%clk 0:00:08]}  Rxb6 {[%clk 0:00:04]} 34. Qxf5+ {[%clk 0:00:07]}  Qxf5 {[%clk 0:00:05]} 35. Rxf5+ {[%clk 0:00:07]}  Bf6 {[%clk 0:00:06]} 36. Nf4 {[%clk 0:00:05]}  Rd1+ {[%clk 0:00:05]} 37. Kg2 {[%clk 0:00:05]}  Kg7 {[%clk 0:00:04]} 38. Nh5+ {[%clk 0:00:04]}  Kg6 {[%clk 0:00:05]} 39. g4 {[%clk 0:00:05]}  Rd2+ {[%clk 0:00:05]} 40. Kh3 {[%clk 0:00:04]}  Bg5 {[%clk 0:00:06]} 41. Ng3 {[%clk 0:00:03]}  Rxc2 {[%clk 0:00:06]} 42. Rf3 {[%clk 0:00:02]}  Rcxb2 {[%clk 0:00:06]} 43. Rd3 {[%clk 0:00:03]}  R6b3 {[%clk 0:00:06]} 44. Rd6+ {[%clk 0:00:02]}  Kf7 {[%clk 0:00:07]} 45. Rd7+ {[%clk 0:00:01]}  Ke6 {[%clk 0:00:07]} 46. Rd6+ {[%clk 0:00:02]}  Ke7 {[%clk 0:00:07]} 47. Re6+ {[%clk 0:00:02]}  Kd7 {[%clk 0:00:08]} 48. Rd6+ {[%clk 0:00:01]}  Ke8 {[%clk 0:00:08]} 49. Re6+ {[%clk 0:00:01]}  Kf7 {[%clk 0:00:09]} 0-1


[Site "https://www.chess.com"]

[Event "Titled Tuesday Blitz February 22 Early 2022"]
[White "Ianov, Viktor"]
[Black "Atakishiyev, Elmar"]
[WhiteFideId "14102730"]
[BlackFideId "13410547"]
[WhiteElo "2518"]
[BlackElo "2736"]
[Result "0-1"]
[Round "04"]
[TimeControl "180+1"]
[Date "2022.02.22"]
[WhiteClock "0:01:13"]
[BlackClock "0:01:34"]

1. Nf3 {[%clk 0:03:00]}  Nf6 {[%clk 0:02:53]} 2. g3 {[%clk 0:03:00]}  g6 {[%clk 0:02:53]} 3. b3 {[%clk 0:03:00]}  Bg7 {[%clk 0:02:53]} 4. Bb2 {[%clk 0:03:00]}  d6 {[%clk 0:02:54]} 5. d4 {[%clk 0:03:00]}  O-O {[%clk 0:02:54]} 6. Bg2 {[%clk 0:03:00]}  b6 {[%clk 0:02:50]} 7. O-O {[%clk 0:02:59]}  Bb7 {[%clk 0:02:50]} 8. c4 {[%clk 0:02:58]}  Nbd7 {[%clk 0:02:50]} 9. Nc3 {[%clk 0:02:56]}  Re8 {[%clk 0:02:40]} 10. Qc2 {[%clk 0:02:55]}  e5 {[%clk 0:02:37]} 11. dxe5 {[%clk 0:02:48]}  dxe5 {[%clk 0:02:38]} 12. Rfd1 {[%clk 0:02:43]}  Qe7 {[%clk 0:02:36]} 13. Nxe5 {[%clk 0:02:31]}  Bxg2 {[%clk 0:02:24]} 14. Nxd7 {[%clk 0:02:31]}  Bb7 {[%clk 0:02:20]} 15. Nxf6+ {[%clk 0:02:28]}  Qxf6 {[%clk 0:02:21]} 16. f3 {[%clk 0:02:18]}  h5 {[%clk 0:02:18]} 17. Na4 {[%clk 0:02:15]}  Qg5 {[%clk 0:02:12]} 18. Bxg7 {[%clk 0:02:14]}  Kxg7 {[%clk 0:02:11]} 19. Qd2 {[%clk 0:01:59]}  Re3 {[%clk 0:02:10]} 20. Kf2 {[%clk 0:01:56]}  Rae8 {[%clk 0:02:10]} 21. Nc3 {[%clk 0:01:56]}  Qf6 {[%clk 0:02:00]} 22. Rac1 {[%clk 0:01:49]}  Rxf3+ {[%clk 0:02:00]} 23. Kg1 {[%clk 0:01:38]}  Rf2 {[%clk 0:02:00]} 24. Qd4 {[%clk 0:01:24]}  Rg2+ {[%clk 0:01:53]} 25. Kh1 {[%clk 0:01:20]}  Rgxe2+ {[%clk 0:01:39]} 26. Kg1 {[%clk 0:01:19]}  Rg2+ {[%clk 0:01:37]} 27. Kh1 {[%clk 0:01:13]}  Rd2+ {[%clk 0:01:34]} 0-1


[Site "https://www.chess.com"]